bitfinex/quotes_BTCUSD_20250530
["timestamp","ask_amount","ask_price","bid_price","bid_amount"]
[1748585701448,0.57008236,106070.0,106060.0,0.001]
[1748585701674,0.66113631,106070.0,106060.0,0.001]
[1748585701898,0.23828781,106030.0,106020.0,0.0034017]
[1748585702099,0.23828781,106030.0,106010.0,0.10732596]
[1748585702100,0.19807565,106020.0,106010.0,0.10732596]
[1748585702320,0.20750756,106020.0,106010.0,0.48653991]
[1748585702538,0.19807565,106020.0,106010.0,0.51778893]
[1748585702742,0.19807565,106020.0,106010.0,0.49886297]
[1748585703848,0.19807565,106020.0,106010.0,0.49986297]
[1748585704083,0.00943147,106020.0,106010.0,0.49986297]
[1748585704296,0.02829271,106030.0,106020.0,0.0312]
[1748585704559,0.22634986,106030.0,106020.0,0.12461173]
[1748585704768,0.20748826,106030.0,106020.0,0.12225395]
[1748585705463,0.20848826,106030.0,106020.0,0.12461173]
[1748585706129,0.02929315,106030.0,106020.0,0.12225395]
[1748585706402,0.03029315,106030.0,106020.0,0.5011716]
[1748585706612,0.03029315,106030.0,106020.0,0.49881395]
[1748585707067,0.21891901,106030.0,106020.0,0.49881395]
[1748585707311,0.20948817,106030.0,106020.0,0.49881395]
[1748585709603,0.20948817,106030.0,106020.0,0.46761395]
[1748585709850,0.20948817,106030.0,106020.0,0.46765395]
[1748585714957,0.20948817,106030.0,106020.0,0.17945395]
[1748585715188,0.20948817,106030.0,106020.0,0.46765395]
[1748585719301,0.20948817,106030.0,106020.0,0.47714563]
[1748585720035,0.20948817,106030.0,106020.0,0.18894563]
[1748585720270,0.20948817,106030.0,106020.0,0.47714563]
[1748585722627,0.20005706,106030.0,106020.0,0.47714563]
[1748585723068,0.19505836,106030.0,106020.0,0.47714563]
[1748585723522,0.18962586,106030.0,106020.0,0.47714563]
[1748585727662,0.19905706,106030.0,106020.0,0.47714563]
[1748585730541,0.23145706,106030.0,106020.0,0.09105395]
[1748585730771,0.23145706,106030.0,106020.0,0.46757395]
[1748585731231,0.23145706,106030.0,106020.0,0.47720635]
[1748585731678,0.23145706,106030.0,106020.0,0.10068635]
[1748585731913,0.23145706,106030.0,106020.0,0.47720635]
[1748585732341,0.23145706,106030.0,106020.0,0.46757395]
[1748585733051,0.23145706,106030.0,106020.0,0.37921395]
[1748585733255,0.23145706,106030.0,106020.0,0.17945395]
[1748585733700,0.23145706,106030.0,106020.0,0.46761395]
[1748585736938,0.23145706,106030.0,106020.0,0.2882]
[1748585741660,0.23145706,106030.0,106020.0,4e-05]
[1748585741904,0.23145706,106030.0,106020.0,0.2882]
[1748585743953,0.23145706,106030.0,106020.0,4e-05]
[1748585744183,0.23145706,106030.0,106020.0,0.2882]
[1748585750810,0.23145706,106030.0,106020.0,0.28816]
[1748585753241,0.23145706,106030.0,106020.0,4e-05]
[1748585753550,0.66251101,106030.0,106020.0,4e-05]
[1748585755438,0.76170101,106030.0,106020.0,4e-05]
[1748585755692,0.66251101,106030.0,106020.0,4e-05]
[1748585755910,0.71251101,106030.0,106020.0,4e-05]
[1748585757349,0.71351101,106030.0,106020.0,4e-05]
[1748585757814,0.71551101,106030.0,106020.0,4e-05]
[1748585758272,0.71351101,106030.0,106020.0,4e-05]
[1748585758500,0.71751101,106030.0,106020.0,4e-05]
[1748585758769,0.71551101,106030.0,106020.0,4e-05]
[1748585759001,0.72051101,106030.0,106020.0,4e-05]
[1748585763878,0.22877565,106020.0,106010.0,4.902e-05]
[1748585765244,0.23277565,106020.0,106010.0,4.902e-05]
[1748585766148,0.23577565,106020.0,106010.0,4.902e-05]
[1748585767624,0.3268296,106020.0,106010.0,4.902e-05]
[1748585769629,0.4151496,106020.0,106010.0,4.902e-05]
[1748585770552,0.5143396,106020.0,106010.0,4.902e-05]
[1748585770779,0.4151496,106020.0,106010.0,4.902e-05]
[1748585775444,0.3268296,106020.0,106010.0,4.902e-05]
[1748585775878,0.54507565,106020.0,106010.0,4.902e-05]
[1748585776314,0.56147565,106020.0,106010.0,4.902e-05]
[1748585776531,0.57677565,106020.0,106010.0,4.902e-05]
[1748585777246,0.56147565,106020.0,106010.0,4.902e-05]
[1748585777487,0.57677565,106020.0,106010.0,4.902e-05]
[1748585780954,0.57767565,106020.0,106010.0,4.902e-05]
[1748585782285,0.56237565,106020.0,106010.0,4.902e-05]
[1748585782493,0.56237565,106020.0,106010.0,8.902e-05]
[1748585782698,0.57737565,106020.0,106010.0,8.902e-05]
[1748585787949,0.54597565,106020.0,106010.0,8.902e-05]
[1748585788636,0.57827565,106020.0,106010.0,8.902e-05]
[1748585790589,0.6693296,106020.0,106010.0,8.902e-05]
[1748585793112,0.68059391,106020.0,106010.0,8.902e-05]
[1748585795642,0.6693296,106020.0,106010.0,8.902e-05]
[1748585796633,0.6370296,106020.0,106010.0,8.902e-05]
[1748585796840,0.54597565,106020.0,106010.0,8.902e-05]
[1748585798589,0.56127565,106020.0,106010.0,8.902e-05]
[1748585799237,0.57767565,106020.0,106010.0,8.902e-05]
[1748585802740,0.58702684,106020.0,106010.0,8.902e-05]
[1748585808411,0.57062684,106020.0,106010.0,8.902e-05]
[1748585812037,0.58582684,106020.0,106010.0,8.902e-05]
[1748585826959,0.59709494,106020.0,106010.0,8.902e-05]
[1748585828332,0.58189494,106020.0,106010.0,8.902e-05]
[1748585829375,0.56659494,106020.0,106010.0,8.902e-05]
[1748585829593,0.56659631,106020.0,106010.0,8.902e-05]
[1748585831361,0.58239631,106020.0,106010.0,8.902e-05]
[1748585833261,0.68905026,106020.0,106010.0,8.902e-05]
[1748585833879,0.68905009,106020.0,106010.0,8.902e-05]
[1748585834105,0.77765009,106020.0,106010.0,8.902e-05]
[1748585837939,0.95194612,106020.0,106010.0,8.902e-05]
[1748585841607,0.86334612,106020.0,106010.0,8.902e-05]
[1748585841839,0.95194612,106020.0,106010.0,8.902e-05]
[1748585842040,0.95193884,106020.0,106010.0,8.902e-05]
[1748585846427,0.84596315,106010.0,106000.0,8.904e-05]
[1748585846839,0.85496315,106010.0,106000.0,8.904e-05]
[1748585849226,0.78989624,106010.0,106000.0,8.904e-05]
[1748585850346,0.78988444,106010.0,106000.0,8.904e-05]
[1748585851439,0.83988444,106010.0,106000.0,8.904e-05]
[1748585853872,0.80389444,106010.0,106000.0,8.904e-05]
[1748585854137,0.77674828,106010.0,106000.0,8.904e-05]
[1748585855014,0.68814828,106010.0,106000.0,8.904e-05]
[1748585858131,0.68814828,106010.0,106000.0,0.03108904]
[1748585858878,0.34814828,106010.0,106000.0,0.03108904]
[1748585859906,0.34814828,106010.0,106000.0,8.904e-05]
[1748585865311,0.34814828,106010.0,106000.0,0.03128904]
[1748585865656,0.34814828,106010.0,106000.0,8.904e-05]
[1748585866119,0.34814828,106010.0,106000.0,0.03128904]
[1748585866341,0.25709433,106010.0,106000.0,0.03128904]
[1748585867615,0.24809433,106010.0,106000.0,0.03128904]
[1748585868062,0.25009433,106010.0,106000.0,0.03128904]
[1748585868993,0.25309433,106010.0,106000.0,0.03128904]
[1748585871782,0.25309433,106010.0,106000.0,8.904e-05]
[1748585873109,0.26839433,106010.0,106000.0,8.904e-05]
[1748585874977,0.28359433,106010.0,106000.0,8.904e-05]
[1748585876081,0.37464828,106010.0,106000.0,8.904e-05]
[1748585876318,0.71464828,106010.0,106000.0,8.904e-05]
[1748585876563,0.72590596,106010.0,106000.0,8.904e-05]
[1748585878982,0.8143054,106010.0,106000.0,8.904e-05]
[1748585881745,0.81430491,106010.0,106000.0,8.904e-05]
[1748585885750,0.91359629,106010.0,106000.0,8.904e-05]
[1748585887073,0.97863619,106010.0,106000.0,8.904e-05]
[1748585887520,0.91359629,106010.0,106000.0,8.904e-05]
[1748585889071,0.97863408,106010.0,106000.0,8.904e-05]
[1748585889510,0.89023408,106010.0,106000.0,8.904e-05]
[1748585889918,0.89025725,106010.0,106000.0,8.904e-05]
[1748585891665,0.79096725,106010.0,106000.0,8.904e-05]
[1748585891895,0.69540629,106010.0,106000.0,8.904e-05]
[1748585892809,0.59309433,106010.0,106000.0,8.904e-05]
[1748585893025,0.59309433,106010.0,106000.0,0.03118904]
[1748585894127,0.25309433,106010.0,106000.0,0.03118904]
[1748585900144,0.25309433,106010.0,106000.0,0.31986904]
[1748585910133,0.20309433,106010.0,106000.0,0.03118904]
[1748585910352,0.20309433,106010.0,106000.0,0.32058904]
[1748585913168,0.20309433,106010.0,106000.0,0.32042904]
[1748585914728,0.20309433,106010.0,106000.0,0.28936904]
[1748585916232,0.20309433,106010.0,106000.0,0.32116904]
[1748585919159,0.20309433,106010.0,106000.0,0.28936904]
[1748585919409,0.20309433,106010.0,106000.0,0.41312299]
[1748585919596,0.005,106010.0,106000.0,0.7387667]
[1748585919812,0.03329725,106010.0,106000.0,0.73876679]
[1748585920042,0.03329725,106010.0,106000.0,1.10274088]
[1748585920043,0.005,106010.0,106000.0,1.10274088]
[1748585920279,0.0238648,106010.0,106000.0,1.08387395]
[1748585920464,0.0238648,106010.0,106000.0,1.09330764]
[1748585920677,0.01443227,106010.0,106000.0,1.10274124]
[1748585921167,0.02086471,106010.0,106000.0,1.11217475]
[1748585921383,0.002,106010.0,106000.0,1.12160808]
[1748585921616,0.003,106010.0,106000.0,1.12160808]
[1748585921845,0.001,106010.0,106000.0,1.12160808]
[1748585922083,0.01976302,106020.0,106010.0,0.04253298]
[1748585922315,0.01976302,106020.0,106010.0,0.22430476]
[1748585922551,0.03862693,106020.0,106010.0,0.55251395]
[1748585922769,0.01976302,106020.0,106010.0,0.56194693]
[1748585923025,0.01976302,106020.0,106010.0,0.76004117]
[1748585923260,0.02076302,106020.0,106010.0,0.76004117]
[1748585923738,0.02176302,106020.0,106010.0,0.76004117]
[1748585923950,0.0029,106020.0,106010.0,0.78401455]
[1748585924164,0.01233138,106020.0,106010.0,1.00370317]
[1748585924582,0.0029,106020.0,106010.0,1.00370317]
[1748585924797,0.0019,106020.0,106010.0,1.00370317]
[1748585925498,0.0009,106020.0,106010.0,1.02270209]
[1748585926113,0.0009,106020.0,106010.0,1.02370209]
[1748585926381,0.01033147,106020.0,106010.0,1.02370218]
[1748585926596,0.01033147,106020.0,106010.0,1.01426965]
[1748585926808,0.01033147,106020.0,106010.0,1.02370227]
[1748585927992,0.01976311,106020.0,106010.0,0.94102394]
[1748585928215,0.01976311,106020.0,106010.0,0.95045665]
[1748585928441,0.2272712,106020.0,106010.0,0.86203287]
[1748585928648,0.03862755,106020.0,106010.0,0.97304987]
[1748585929737,0.03862755,106020.0,106010.0,0.86203287]
[1748585929975,0.2272712,106020.0,106010.0,0.97398987]
[1748585930245,0.20840774,106020.0,106010.0,0.86203287]
[1748585930455,0.19897583,106020.0,106010.0,0.52283287]
[1748585931729,0.0009,106020.0,106010.0,0.52283287]
[1748585931945,0.0009,106020.0,106010.0,1.99355529]
[1748585932375,0.0009,106020.0,106010.0,1.96392529]
[1748585933059,0.0009,106020.0,106010.0,2.30392529]
[1748585935090,0.0009,106020.0,106010.0,2.28492637]
[1748585936563,0.0009,106020.0,106010.0,2.19484737]
[1748585936989,0.0009,106020.0,106010.0,2.59484737]
[1748585937210,0.0009,106020.0,106010.0,2.57599037]
[1748585937469,0.0009,106020.0,106010.0,2.47309037]
[1748585937982,0.0009,106020.0,106010.0,2.87309037]
[1748585938418,0.0009,106020.0,106010.0,2.37733737]
[1748585939837,0.0009,106020.0,106010.0,2.35848037]
[1748585940847,0.0009,106020.0,106010.0,2.33148037]
[1748585941037,0.0009,106020.0,106010.0,2.29208937]
[1748585942191,0.0009,106020.0,106010.0,2.00256937]
[1748585942406,0.01033138,106020.0,106010.0,2.69152937]
[1748585942622,0.21783911,106020.0,106010.0,1.61223695]
[1748585942831,0.20840756,106020.0,106010.0,1.46367895]
[1748585943271,0.20840756,106020.0,106010.0,1.16657895]
[1748585945062,0.20840756,106020.0,106010.0,1.10468195]
[1748585946165,0.20840756,106020.0,106010.0,0.72656195]
[1748585946395,0.20840756,106020.0,106010.0,1.10472195]
[1748585946607,0.20840756,106020.0,106010.0,0.72656195]
[1748585946817,0.20840756,106020.0,106010.0,1.10468195]
[1748585947901,0.20840756,106020.0,106010.0,0.72656195]
[1748585948108,0.20840756,106020.0,106010.0,0.81009395]
[1748585948109,0.22430756,106020.0,106010.0,0.81009395]
[1748585949293,0.24010756,106020.0,106010.0,0.47005395]
[1748585952158,0.24010756,106020.0,106010.0,0.46989395]
[1748585954084,0.22430756,106020.0,106010.0,0.46981395]
[1748585954715,0.24010756,106020.0,106010.0,0.46981395]
[1748585955336,0.23067574,106020.0,106010.0,0.46981395]
[1748585955764,0.21487574,106020.0,106010.0,0.46981395]
[1748585956053,0.20840756,106020.0,106010.0,0.46981395]
[1748585957778,0.01033155,106020.0,106010.0,0.46981395]
[1748585957997,0.01976328,106020.0,106010.0,0.47924702]
[1748585958205,0.0291951,106020.0,106010.0,0.47924693]
[1748585958428,0.0386271,106020.0,106010.0,0.47924702]
[1748585958862,0.0386271,106020.0,106010.0,0.46981395]
[1748585959071,0.0386271,106020.0,106010.0,0.47924702]
[1748585959694,0.03862764,106020.0,106010.0,0.46981395]
[1748585959905,0.22727129,106020.0,106010.0,0.46981395]
[1748585960116,0.03862809,106020.0,106010.0,0.46981395]
[1748585960329,0.20840774,106020.0,106010.0,0.09205395]
[1748585960538,0.22470774,106020.0,106010.0,0.46925395]
[1748585961420,0.01976409,106020.0,106010.0,0.46925395]
[1748585961631,0.01033173,106020.0,106010.0,0.46925395]
[1748585961874,0.0386272,106020.0,106010.0,0.47868702]
[1748585962329,0.02919511,106020.0,106010.0,0.47868702]
[1748585962539,0.03862711,106020.0,106010.0,0.47868702]
[1748585962759,0.02919511,106020.0,106010.0,0.67678144]
[1748585962967,0.0197632,106020.0,106010.0,0.68621433]
[1748585963179,0.02919511,106020.0,106010.0,0.67678144]
[1748585963873,0.02919511,106020.0,106010.0,0.68621433]
[1748585964300,0.01033147,106020.0,106010.0,0.67678144]
[1748585964517,0.01976302,106020.0,106010.0,0.68621433]
[1748585964743,0.02919484,106020.0,106010.0,0.68621433]
[1748585964963,0.02919475,106020.0,106010.0,0.69564713]
[1748585965360,0.0009,106020.0,106010.0,0.70507966]
[1748585965609,0.0009,106020.0,106010.0,1.07507966]
[1748585965828,0.0009,106020.0,106010.0,1.07507903]
[1748585967820,0.01033138,106020.0,106010.0,1.06564659]
[1748585968051,0.01976302,106020.0,106010.0,1.06564677]
[1748585968280,0.01976302,106020.0,106010.0,1.03564677]
[1748585968502,0.01976302,106020.0,106010.0,1.04507939]
[1748585968748,0.01976293,106020.0,106010.0,1.0450793]
[1748585968975,0.01033138,106020.0,106010.0,1.0450793]
[1748585969197,0.01976293,106020.0,106010.0,1.04507939]
[1748585969634,0.01976293,106020.0,106010.0,1.03564677]
[1748585969866,0.01033138,106020.0,106010.0,1.03564677]
[1748585970070,0.02919466,106020.0,106010.0,1.05084677]
[1748585970734,0.0009,106020.0,106010.0,2.59202006]
[1748585970952,0.0009,106020.0,106010.0,2.52085695]
[1748585971238,0.01976302,106020.0,106010.0,0.82833069]
[1748585971452,0.24000738,106020.0,106010.0,0.18057395]
[1748585971679,0.24000738,106020.0,106010.0,0.09205395]
[1748585971921,0.24000738,106020.0,106010.0,0.37836]
[1748585974208,0.24000738,106020.0,106010.0,0.001]
[1748585974421,0.24000738,106020.0,106010.0,0.37824]
[1748585975339,0.24000738,106020.0,106010.0,0.37816]
[1748585978951,0.24000738,106020.0,106010.0,0.37804]
[1748585980120,0.24000738,106020.0,106010.0,0.37796]
[1748585980517,0.24000738,106020.0,106010.0,0.001]
[1748585980758,0.24000738,106020.0,106010.0,0.08952]
[1748585980975,0.24000738,106020.0,106010.0,0.37792]
[1748585981185,0.24000738,106020.0,106010.0,0.08952]
[1748585981396,0.24000738,106020.0,106010.0,0.37796]
[1748585983401,0.24000738,106020.0,106010.0,0.001]
[1748585983585,0.24000738,106020.0,106010.0,0.37792]
[1748585984093,0.24000738,106020.0,106010.0,0.001]
[1748585984321,0.24000738,106020.0,106010.0,0.28936]
[1748585984553,0.24000738,106020.0,106010.0,0.001]
[1748585984782,0.24000738,106020.0,106010.0,0.28948]
[1748585984998,0.24000738,106020.0,106010.0,0.28952]
[1748585985911,0.24000738,106020.0,106010.0,0.28852]
[1748585986133,0.24100738,106020.0,106010.0,0.28852]
[1748585987074,0.19809433,106010.0,106000.0,8.904e-05]
[1748585987288,0.22919433,106010.0,106000.0,0.37696904]
[1748585988629,0.22919433,106010.0,106000.0,0.37792904]
[1748585991766,0.22919433,106010.0,106000.0,0.00108904]
[1748585992031,0.22919433,106010.0,106000.0,0.08956904]
[1748585992280,0.22919433,106010.0,106000.0,0.37788904]
[1748585993182,0.22919433,106010.0,106000.0,0.37784904]
[1748585996604,0.22423794,106010.0,106000.0,0.37784904]
[1748586004813,0.20257074,106010.0,106000.0,0.46890299]
[1748586005032,0.19313794,106010.0,106000.0,0.50030299]
[1748586005478,0.19313794,106010.0,106000.0,0.49530299]
[1748586006175,0.19313794,106010.0,106000.0,0.09105395]
[1748586006391,0.00943422,105990.0,105980.0,1.7220374]
[1748586006625,0.00943414,105990.0,105980.0,2.12886346]
[1748586006858,0.00943414,105990.0,105980.0,2.1293544]
[1748586007078,0.01886836,105990.0,105980.0,2.15985449]
[1748586007321,0.01886711,106000.0,105990.0,0.04103485]
[1748586007549,0.02830036,106000.0,105990.0,0.32314407]
[1748586007761,0.01886667,106000.0,105990.0,0.33022033]
[1748586007975,0.01886667,106000.0,105990.0,0.33965482]
[1748586007976,0.02830027,106000.0,105990.0,0.33965482]
[1748586008193,0.02830027,106000.0,105990.0,0.33022033]
[1748586008653,0.00943325,106000.0,105990.0,0.67022033]
[1748586008888,0.02830018,106000.0,105990.0,0.67965482]
[1748586009108,0.02830009,106000.0,105990.0,0.67965482]
[1748586009330,0.02830009,106000.0,105990.0,0.68165482]
[1748586009561,0.01886658,106000.0,105990.0,0.68265482]
[1748586009830,0.01886658,106000.0,105990.0,0.69208913]
[1748586010056,0.21696028,106010.0,106000.0,0.0312]
[1748586010274,0.21696028,106010.0,106000.0,0.49905395]
[1748586011194,0.00943244,106010.0,106000.0,0.68773319]
[1748586011426,0.02829795,106010.0,106000.0,0.68773319]
[1748586011648,0.02829795,106010.0,106000.0,0.69716706]
[1748586011872,0.01886506,106010.0,106000.0,0.70660066]
[1748586012106,0.01886506,106010.0,106000.0,0.68773319]
[1748586012348,0.01886506,106010.0,106000.0,0.49905395]
[1748586012349,0.03773093,106010.0,106000.0,0.49905395]
[1748586012573,0.20840776,106020.0,106000.0,1.02483444]
[1748586012810,0.0188648,106010.0,106000.0,1.05523444]
[1748586013284,0.0188648,106010.0,106000.0,1.05727444]
[1748586013682,0.02829716,106010.0,106000.0,1.05727444]
[1748586013936,0.21784062,106020.0,106000.0,1.44857574]
[1748586014148,0.21784062,106020.0,106010.0,0.09105395]
[1748586015248,0.02919618,106020.0,106010.0,0.12245395]
[1748586016157,0.21695931,106010.0,106000.0,0.34004]
[1748586016382,0.21695931,106010.0,106000.0,0.80785395]
[1748586017036,0.20752695,106010.0,106000.0,0.80785395]
[1748586017534,0.20752695,106010.0,106000.0,0.51957395]
[1748586017748,0.19809433,106010.0,106000.0,0.80977395]
[1748586017969,0.22999433,106010.0,106000.0,0.34204]
[1748586018194,0.22999433,106010.0,106000.0,0.71872]
[1748586018415,0.22999433,106010.0,106000.0,0.72072]
[1748586018638,0.22999433,106010.0,106000.0,0.09244]
[1748586019103,0.22999433,106010.0,106000.0,0.38072]
[1748586028100,0.22999433,106010.0,106000.0,0.38076]
[1748586028317,0.22999433,106010.0,106000.0,0.38072]
[1748586029446,0.22999433,106010.0,106000.0,0.00404]
[1748586029671,0.22999433,106010.0,106000.0,0.2924]
[1748586029888,0.22999433,106010.0,106000.0,0.29244]
[1748586030570,0.21099433,106010.0,106000.0,0.2924]
[1748586030781,0.22042722,106010.0,106000.0,0.2924]
[1748586030997,0.22042722,106010.0,106000.0,0.2904]
[1748586031212,0.22042722,106010.0,106000.0,4e-05]
[1748586031429,0.22142722,106010.0,106000.0,0.2886]
[1748586031654,0.22242722,106010.0,106000.0,0.2886]
[1748586033729,0.22242722,106010.0,106000.0,0.28856]
[1748586035557,0.31348117,106010.0,106000.0,4e-05]
[1748586037308,0.65348117,106010.0,106000.0,4e-05]
[1748586038660,0.66472583,106010.0,106000.0,4e-05]
[1748586038885,0.19811302,106000.0,105990.0,4e-05]
[1748586039616,0.53813171,105990.0,105980.0,0.00057094]
[1748586039622,0.57063171,105990.0,105980.0,0.00057094]
[1748586039856,0.32168566,105990.0,105980.0,0.00057094]
[1748586041904,0.32968566,105990.0,105980.0,0.00057094]
[1748586045978,0.23863171,105990.0,105980.0,0.00057094]
[1748586046871,0.23063171,105990.0,105980.0,0.00057094]
[1748586047166,0.23263171,105990.0,105980.0,0.00057094]
[1748586047382,0.21643171,105990.0,105980.0,0.00057094]
[1748586047827,0.20213171,105990.0,105980.0,0.03247094]
[1748586048278,0.20213171,105990.0,105980.0,0.00057094]
[1748586048947,0.20213171,105990.0,105980.0,0.01617094]
[1748586049210,0.20213171,105990.0,105980.0,0.12119094]
[1748586051949,0.20213171,105990.0,105980.0,0.08929094]
[1748586052430,0.20213171,105990.0,105980.0,0.11959094]
[1748586053536,0.20213171,105990.0,105980.0,0.08929094]
[1748586053751,0.20213171,105990.0,105980.0,0.37813094]
[1748586055740,0.20213171,105990.0,105980.0,0.08929094]
[1748586055966,0.21713171,105990.0,105980.0,0.37825094]
[1748586056184,0.23283171,105990.0,105980.0,0.37825094]
[1748586056413,0.23283171,105990.0,105980.0,0.00057094]
[1748586056634,0.23283171,105990.0,105980.0,0.28961094]
[1748586057066,0.23283171,105990.0,105980.0,0.28965094]
[1748586058698,0.23283171,105990.0,105980.0,0.00057094]
[1748586058925,0.23283171,105990.0,105980.0,0.28953094]
[1748586059592,0.20213171,105990.0,105980.0,0.28953094]
[1748586059833,0.20213171,105990.0,105980.0,0.32073094]
[1748586060953,0.20213171,105990.0,105980.0,0.32083094]
[1748586062857,0.20213171,105990.0,105980.0,0.28953094]
[1748586069927,0.21863171,105990.0,105980.0,0.00057094]
[1748586070216,0.23423171,105990.0,105980.0,0.28953094]
[1748586073944,0.23423171,105990.0,105980.0,0.24953094]
[1748586075215,0.19815041,105980.0,105970.0,0.08872]
[1748586075461,0.19815041,105980.0,105970.0,0.71768904]
[1748586076375,0.19815041,105980.0,105970.0,0.08876904]
[1748586076598,0.21385041,105980.0,105970.0,0.08876904]
[1748586076818,0.22935041,105980.0,105970.0,0.08876904]
[1748586077039,0.23035041,105980.0,105970.0,0.37776904]
[1748586077231,0.21485041,105980.0,105970.0,0.37776904]
[1748586077687,0.21585041,105980.0,105970.0,0.37776904]
[1748586077968,0.20015041,105980.0,105970.0,0.37780904]
[1748586078190,0.20015041,105980.0,105970.0,0.37772904]
[1748586078417,0.23025041,105980.0,105970.0,0.08880904]
[1748586078655,0.23025041,105980.0,105970.0,8.904e-05]
[1748586079320,0.32130436,105980.0,105970.0,8.904e-05]
[1748586080503,0.32030436,105980.0,105970.0,8.904e-05]
[1748586080946,0.32230436,105980.0,105970.0,8.904e-05]
[1748586081165,0.32130436,105980.0,105970.0,8.904e-05]
[1748586081633,0.32330436,105980.0,105970.0,8.904e-05]
[1748586082963,0.23225041,105980.0,105970.0,8.904e-05]
[1748586086122,0.23225041,105980.0,105970.0,0.08880904]
[1748586093123,0.23225041,105980.0,105970.0,0.37996904]
[1748586096101,0.23225041,105980.0,105970.0,0.08880904]
[1748586096334,0.23225041,105980.0,105970.0,0.38008904]
[1748586098752,0.23225041,105980.0,105970.0,0.29136904]
[1748586103890,0.23225041,105980.0,105970.0,0.29144904]
[1748586105933,0.20215041,105980.0,105970.0,0.29144904]
[1748586107439,0.21114605,105980.0,105970.0,0.29144904]
[1748586107872,0.24304605,105980.0,105970.0,0.29128904]
[1748586108541,0.24305621,105980.0,105970.0,0.29128904]
[1748586109673,0.22765621,105980.0,105970.0,0.29128904]
[1748586112166,0.21115621,105980.0,105970.0,0.29128904]
[1748586112672,0.21115621,105980.0,105970.0,0.71439034]
[1748586112673,0.20215041,105980.0,105970.0,0.71439034]
[1748586113316,0.21158588,105980.0,105970.0,0.80544429]
[1748586114185,0.20215041,105980.0,105970.0,0.80544429]
[1748586119072,0.20215041,105980.0,105970.0,0.51424429]
[1748586119312,0.19271485,105980.0,105970.0,0.80472429]
[1748586120479,0.01343538,105980.0,105970.0,0.99345695]
[1748586120697,0.03230561,105980.0,105970.0,1.00289349]
[1748586120909,0.04174117,105980.0,105970.0,1.01232994]
[1748586121126,0.04174117,105980.0,105970.0,0.80472429]
[1748586121583,0.03974117,105980.0,105970.0,0.80472429]
[1748586122242,0.03974117,105980.0,105970.0,1.3428934]
[1748586122463,0.03974117,105980.0,105970.0,1.36176567]
[1748586122464,0.01143494,105980.0,105970.0,1.36176567]
[1748586122700,0.02087014,105980.0,105970.0,1.35232967]
[1748586122923,0.03030552,105980.0,105970.0,1.36176585]
[1748586123354,0.03974099,105980.0,105970.0,1.34289349]
[1748586123574,0.02087014,105980.0,105970.0,1.35232985]
[1748586123799,0.02830561,105980.0,105970.0,1.35232976]
[1748586124274,0.02830561,105980.0,105970.0,1.78667994]
[1748586124497,0.02830552,105980.0,105970.0,1.78667994]
[1748586124724,0.02830552,105980.0,105970.0,1.77724376]
[1748586124971,0.02830517,105980.0,105970.0,1.79611594]
[1748586125247,0.03774055,105980.0,105970.0,1.77724376]
[1748586125687,0.04717611,105980.0,105970.0,1.77724376]
[1748586125900,0.04717611,105980.0,105970.0,1.76780749]
[1748586126120,0.04717611,105980.0,105970.0,1.77724385]
[1748586126344,0.04717602,105980.0,105970.0,1.77724385]
[1748586128129,0.20756784,105990.0,105970.0,1.79611639]
[1748586128346,0.21700233,105990.0,105980.0,0.60753391]
[1748586128566,0.21700233,105990.0,105980.0,0.60517525]
[1748586128792,0.02830356,105990.0,105980.0,0.80332566]
[1748586129009,0.03773814,105990.0,105980.0,0.80332575]
[1748586129458,0.03773814,105990.0,105980.0,0.80332584]
[1748586129725,0.03873814,105990.0,105980.0,0.80332584]
[1748586129944,0.03873805,105990.0,105980.0,0.80332584]
[1748586130161,0.03973796,105990.0,105980.0,0.61461099]
[1748586130390,0.04917281,105990.0,105980.0,0.62404664]
[1748586130620,0.04917281,105990.0,105980.0,0.61461099]
[1748586130842,0.04917281,105990.0,105980.0,0.62404664]
[1748586131115,0.04917281,105990.0,105980.0,0.61461099]
[1748586131333,0.03973859,105990.0,105980.0,0.60517525]
[1748586131572,0.03973859,105990.0,105980.0,0.61461099]
[1748586132503,0.22843563,105990.0,105980.0,0.60517525]
[1748586132726,0.21900114,105990.0,105980.0,0.86239525]
[1748586132948,0.21900114,105990.0,105980.0,0.89529525]
[1748586133165,0.21900114,105990.0,105980.0,0.87879525]
[1748586133836,0.21900114,105990.0,105980.0,0.86239525]
[1748586134691,0.20956656,105990.0,105980.0,0.86239525]
[1748586136998,0.20013189,105990.0,105980.0,0.86239525]
[1748586137746,0.20956647,105990.0,105980.0,0.86239525]
[1748586137978,0.03030365,105990.0,105980.0,1.0843101]
[1748586138223,0.03030365,105990.0,105980.0,1.09374575]
[1748586138457,0.02086889,105990.0,105980.0,1.10318122]
[1748586138687,0.20956638,105990.0,105980.0,0.86239525]
[1748586139162,0.02086934,105990.0,105980.0,0.86239525]
[1748586139426,0.02086836,105990.0,105980.0,1.10208104]
[1748586139657,0.03030294,105990.0,105980.0,1.10208113]
[1748586140090,0.0397377,105990.0,105980.0,0.90393081]
[1748586140523,0.03030294,105990.0,105980.0,1.43264566]
[1748586140744,0.0397377,105990.0,105980.0,1.4232101]
[1748586140963,0.03030294,105990.0,105980.0,1.44208113]
[1748586141185,0.03973761,105990.0,105980.0,1.44208122]
[1748586141437,0.03030294,105990.0,105980.0,1.4515166]
[1748586141853,0.02086836,105990.0,105980.0,1.45151651]
[1748586142086,0.03973734,105990.0,105980.0,1.4515166]
[1748586142323,0.03973734,105990.0,105980.0,1.4194166]
[1748586142810,0.03030276,105990.0,105980.0,1.4514166]
[1748586143245,0.03973734,105990.0,105980.0,1.4514166]
[1748586143481,0.02086827,105990.0,105980.0,1.4796363]
[1748586144179,0.03973734,105990.0,105980.0,1.06946451]
[1748586144405,0.03030267,105990.0,105980.0,1.4287259]
[1748586144629,0.03030267,105990.0,105980.0,1.43816137]
[1748586144880,0.03973716,105990.0,105980.0,1.44759666]
[1748586145103,0.03973769,105990.0,105980.0,1.41929034]
[1748586145325,0.03973769,105990.0,105980.0,1.43816137]
[1748586145555,0.03973769,105990.0,105980.0,1.4287259]
[1748586145556,0.04917245,105990.0,105980.0,1.4287259]
[1748586145775,0.23786958,105990.0,105980.0,1.22113984]
[1748586145986,0.23490096,105990.0,105980.0,1.20235525]
[1748586146223,0.24106647,105990.0,105980.0,1.20227525]
[1748586146686,0.22546647,105990.0,105980.0,1.20227525]
[1748586147526,0.22546647,105990.0,105980.0,0.81097395]
[1748586147737,0.22546647,105990.0,105980.0,1.20227525]
[1748586148170,0.20659704,105990.0,105980.0,0.91227525]
[1748586148413,0.22289704,105990.0,105980.0,1.20215525]
[1748586149790,0.20659704,105990.0,105980.0,1.20215525]
[1748586150671,0.22239704,105990.0,105980.0,1.20215525]
[1748586150891,0.20659704,105990.0,105980.0,1.20215525]
[1748586151316,0.20659704,105990.0,105980.0,1.21159099]
[1748586151536,0.20659704,105990.0,105980.0,1.20215525]
[1748586152211,0.20659704,105990.0,105980.0,1.2116309]
[1748586152422,0.20956611,105990.0,105980.0,1.20219525]
[1748586152865,0.20956611,105990.0,105980.0,1.21163099]
[1748586153083,0.21900096,105990.0,105980.0,1.21163099]
[1748586153304,0.21900096,105990.0,105980.0,1.20219525]